fUST/lending_fUST_20240802
["ID","MTS","AMOUNT","RATE_DAILY","PERIOD"]
[333841243,1722545455015,-556.5563488,0.0001452,2]
[333841244,1722545455024,-541.92,0.0001452,2]
[333841245,1722545455034,-500.0,0.0001452,2]
[333841246,1722545455043,-500.0,0.0001452,2]
[333841247,1722545455053,-500.0,0.0001452,2]
[333841248,1722545455062,-500.0,0.0001452,2]
[333841249,1722545455071,-500.0,0.0001452,2]
[333841250,1722545455081,-500.0,0.0001452,2]
[333841251,1722545455091,-500.0,0.0001452,2]
[333841252,1722545455100,-500.0,0.0001452,2]
[333841253,1722545455109,-500.0,0.0001452,2]
[333841254,1722545455118,-500.0,0.0001452,2]
[333841255,1722545455127,-500.0,0.0001452,2]
[333841256,1722545455136,-500.0,0.0001452,2]
[333841257,1722545455146,-503.72248102,0.0001452,2]
[333841258,1722545455156,-500.0,0.0001452,2]
[333841259,1722545455165,-535.57,0.0001452,2]
[333841260,1722545455175,-500.0,0.0001452,2]
[333841261,1722545455184,-500.0,0.0001452,2]
[333841262,1722545455193,-500.0,0.0001452,2]
[333841263,1722545455202,-500.0,0.0001452,2]
[333841264,1722545455212,-520.29945141,0.0001452,2]
[333841265,1722545455221,-514.98561852,0.0001452,2]
[333841266,1722545455231,-500.0,0.0001452,2]
[333841267,1722545455240,-500.0,0.0001452,2]
[333841268,1722545455249,-500.0,0.0001452,2]
[333841269,1722545455258,-500.0,0.0001452,2]
[333841270,1722545455267,-500.0,0.0001452,2]
[333841271,1722545455276,-965.43,0.0001452,2]
[333841272,1722545455286,-500.0,0.0001452,2]
[333841273,1722545455295,-500.0,0.0001452,2]
[333841274,1722545455305,-500.0,0.0001452,2]
[333841275,1722545455314,-500.0,0.0001452,2]
[333841276,1722545455323,-500.0,0.0001452,2]
[333841277,1722545455333,-500.0,0.0001452,2]
[333841278,1722545455342,-500.0,0.0001452,2]
[333841279,1722545455352,-500.0,0.0001452,2]
[333841280,1722545455361,-500.0,0.0001452,2]
[333841281,1722545455370,-500.0,0.0001452,2]
[333841282,1722545455379,-500.0,0.0001452,2]
[333841283,1722545455389,-500.0,0.0001452,2]
[333841284,1722545455398,-500.0,0.0001452,2]
[333841285,1722545455409,-500.0,0.0001452,2]
[333841286,1722545455417,-500.0,0.0001452,2]
[333841287,1722545455426,-500.0,0.0001452,2]
[333841288,1722545455441,-500.0,0.0001452,2]
[333841289,1722545455450,-500.0,0.0001452,2]
[333841290,1722545455459,-500.0,0.0001452,2]
[333841291,1722545455469,-791.6,0.0001452,2]
[333841292,1722545455481,-500.0,0.0001452,2]
[333841293,1722545455490,-500.0,0.0001452,2]
[333841294,1722545455499,-500.0,0.0001452,2]
[333841295,1722545455510,-500.0,0.0001452,2]
[333841296,1722545455519,-500.0,0.0001452,2]
[333841297,1722545455529,-500.0,0.0001452,2]
[333841298,1722545455538,-722.99,0.0001452,2]
[333841299,1722545455548,-630.24,0.0001452,2]
[333841300,1722545455557,-537.95,0.0001452,2]
[333841301,1722545455567,-500.0,0.0001452,2]
[333841302,1722545455577,-500.0,0.0001452,2]
[333841303,1722545455586,-517.40375879,0.0001452,2]
[333841304,1722545455596,-881.14,0.0001452,2]
[333841305,1722545455605,-2047.44,0.0001452,2]
[333841306,1722545455614,-500.0,0.0001452,2]
[333841307,1722545455624,-500.0,0.0001452,2]
[333841308,1722545455633,-500.0,0.0001452,2]
[333841309,1722545455643,-500.0,0.0001452,2]
[333841310,1722545455652,-500.0,0.0001452,2]
[333841311,1722545455664,-500.0,0.0001452,2]
[333841312,1722545455674,-500.0,0.0001452,2]
[333841313,1722545455685,-500.0,0.0001452,2]
[333841314,1722545455694,-500.0,0.0001452,2]
[333841315,1722545455703,-2400.03,0.0001452,2]
[333841316,1722545455712,-500.0,0.0001452,2]
[333841317,1722545455721,-500.0,0.0001452,2]
[333841318,1722545455730,-500.0,0.0001452,2]
[333841319,1722545455739,-500.0,0.0001452,2]
[333841320,1722545455749,-1649.88,0.0001452,2]
[333841321,1722545455758,-500.0,0.0001452,2]
[333841322,1722545455768,-500.0,0.0001452,2]
[333841323,1722545455777,-750.82,0.0001452,2]
[333841324,1722545455787,-619.88,0.0001452,2]
[333841325,1722545455796,-500.0,0.0001452,2]
[333841326,1722545455805,-500.0,0.0001452,2]
[333841327,1722545455815,-532.720001,0.0001452,2]
[333841328,1722545455824,-500.0,0.0001452,2]
[333841329,1722545455834,-151.0,0.0001452,2]
[333841330,1722545455844,-227.456306,0.0001452,2]
[333841331,1722545455854,-500.0,0.0001452,2]
[333841332,1722545455863,-500.0,0.0001452,2]
[333841333,1722545455873,-500.0,0.0001452,2]
[333841334,1722545455883,-508.81421318,0.0001452,2]
[333841335,1722545455892,-500.0,0.0001452,2]
[333841336,1722545455902,-426.176973,0.0001452,2]
[333841337,1722545455914,-166.98375884,0.0001452,2]
[333841338,1722545455924,-500.0,0.0001452,2]
[333841339,1722545455934,-500.0,0.0001452,2]
[333841340,1722545455944,-426.176973,0.0001452,2]
[333841341,1722545455953,-500.0,0.0001452,2]
[333841342,1722545455963,-500.0,0.0001452,2]
[333841343,1722545455972,-500.0,0.0001452,2]
[333841344,1722545455983,-500.0,0.0001452,2]
[333841345,1722545455992,-151.0,0.0001452,2]
[333841346,1722545456002,-1747.45,0.0001452,2]
[333841347,1722545456012,-500.0,0.0001452,2]
[333841348,1722545456021,-500.0,0.0001452,2]
[333841349,1722545456031,-500.0,0.0001452,2]
[333841350,1722545456041,-1289.96,0.0001452,2]
[333841351,1722545456051,-500.0,0.0001452,2]
[333841352,1722545456060,-500.0,0.0001452,2]
[333841353,1722545456070,-500.0,0.0001452,2]
[333841354,1722545456080,-500.0,0.0001452,2]
[333841355,1722545456090,-500.0,0.0001452,2]
[333841356,1722545456099,-151.0,0.0001452,2]
[333841357,1722545456109,-500.0,0.0001452,2]
[333841358,1722545456119,-654.64,0.0001452,2]
[333841359,1722545456129,-500.0,0.0001452,2]
[333841360,1722545456139,-500.0,0.0001452,2]
[333841361,1722545456148,-500.0,0.0001452,2]
[333841362,1722545456160,-500.0,0.0001452,2]
[333841363,1722545456170,-500.0,0.0001452,2]
[333841364,1722545456180,-151.0,0.0001452,2]
[333841365,1722545456189,-500.0,0.0001452,2]
[333841366,1722545456199,-643.18,0.0001452,2]
[333841367,1722545456209,-500.0,0.0001452,2]
[333841368,1722545456218,-810.092214,0.0001452,2]
[333841369,1722545456228,-810.092214,0.0001452,2]
[333841370,1722545456237,-500.0,0.0001452,2]
[333841371,1722545456247,-500.0,0.0001452,2]
[333841372,1722545456256,-500.0,0.0001452,2]
[333841373,1722545456346,-500.0,0.0001452,2]
[333841374,1722545456357,-500.0,0.0001452,2]
[333841375,1722545456367,-500.0,0.0001452,2]
[333841376,1722545456376,-193.742456,0.0001452,2]
[333841377,1722545456385,-500.0,0.0001452,2]
[333841378,1722545456395,-570.56,0.0001452,2]
[333841379,1722545456405,-193.742456,0.0001452,2]
[333841380,1722545456415,-500.0,0.0001452,2]
[333841381,1722545456426,-500.0,0.0001452,2]
[333841382,1722545456438,-545.17,0.0001452,2]
[333841383,1722545456447,-500.0,0.0001452,2]
[333841384,1722545456456,-500.0,0.0001452,2]
[333841385,1722545456466,-850.69,0.0001452,2]
[333841386,1722545456477,-399.898657,0.0001452,2]
[333841387,1722545456487,-500.0,0.0001452,2]
[333841388,1722545456497,-500.0,0.0001452,2]
[333841389,1722545456508,-399.898657,0.0001452,2]
[333841390,1722545456517,-500.0,0.0001452,2]
[333841391,1722545456527,-564.02,0.0001452,2]
[333841392,1722545456536,-500.0,0.0001452,2]
[333841393,1722545456545,-151.0,0.00014551,2]
[333841394,1722545456554,-213.314294,0.00014551,2]
[333841395,1722545456564,-213.314294,0.00014551,2]
[333841396,1722545456574,-411.367019,0.00014551,2]
[333841397,1722545456583,-591.466904,0.00014551,2]
[333841398,1722545456593,-411.367019,0.00014551,2]
[333841399,1722545456603,-591.466904,0.00014551,2]
[333841400,1722545456612,-30000.0,0.0001469,2]
[333841401,1722545456622,-30000.0,0.0001469,2]
[333841402,1722545456632,-151.0,0.0001469,2]
[333841403,1722545456642,-151.0,0.0001469,2]
[333841404,1722545456651,-151.0,0.0001469,2]
[333841405,1722545456662,-183.468371,0.0001469,2]
[333841406,1722545456672,-183.468371,0.0001469,2]
[333841407,1722545456681,-495.982527,0.0001469,2]
[333841408,1722545456691,-495.982527,0.0001469,2]
[333841409,1722545456700,-200.12635228,0.00014769,2]
[333841410,1722545456710,-500.0,0.00014794,2]
[333841411,1722545456719,-500.0,0.00014794,2]
[333841412,1722545456728,-500.0,0.00014794,2]
[333841413,1722545456738,-500.0,0.00014794,2]
[333841414,1722545456748,-500.0,0.00014794,2]
[333841415,1722545456758,-500.0,0.00014794,2]
[333841416,1722545456768,-500.0,0.00014794,2]
[333841417,1722545456777,-500.0,0.00014794,2]
[333841418,1722545456787,-500.0,0.00014794,2]
[333841419,1722545456797,-500.0,0.00014794,2]
[333841420,1722545456807,-500.0,0.00014794,2]
[333841421,1722545456817,-500.0,0.00014794,2]
[333841422,1722545456828,-500.0,0.00014794,2]
[333841423,1722545456838,-500.0,0.00014794,2]
[333841424,1722545456848,-500.0,0.00014794,2]
[333841425,1722545456857,-500.0,0.00014794,2]
[333841426,1722545456871,-500.0,0.00014794,2]
[333841427,1722545456881,-500.0,0.00014794,2]
[333841428,1722545456891,-500.0,0.00014794,2]
[333841429,1722545456901,-500.0,0.00014794,2]
[333841430,1722545456912,-500.0,0.00014794,2]
[333841431,1722545456922,-500.0,0.00014794,2]
[333841432,1722545456931,-500.0,0.00014794,2]
[333841433,1722545456940,-500.0,0.00014794,2]
[333841434,1722545456950,-220.40643761,0.00014794,2]
[333841435,1722545456959,-541.92,0.00014794,2]
[333841436,1722545456969,-500.0,0.00014794,2]
[333841437,1722545456978,-500.0,0.00014794,2]
[333841438,1722545456988,-500.0,0.00014794,2]
[333841439,1722545456997,-500.0,0.00014794,2]
[333841440,1722545457007,-500.0,0.00014794,2]
[333841441,1722545457017,-500.0,0.00014794,2]
[333841442,1722545457026,-500.0,0.00014794,2]
[333841443,1722545457036,-500.0,0.00014794,2]
[333841444,1722545457045,-500.0,0.00014794,2]
[333841445,1722545457055,-500.0,0.00014794,2]
[333841446,1722545457065,-500.0,0.00014794,2]
[333841447,1722545457074,-500.0,0.00014794,2]
[333841448,1722545457083,-535.57,0.00014794,2]
[333841449,1722545457093,-500.0,0.00014794,2]
[333841450,1722545457102,-500.0,0.00014794,2]
[333841451,1722545457111,-500.0,0.00014794,2]
[333841452,1722545457121,-518.48045039,0.00014794,2]
[333841453,1722545457130,-500.0,0.00014794,2]
[333841454,1722545457139,-500.0,0.00014794,2]
[333841455,1722545457149,-500.0,0.00014794,2]
[333841456,1722545457159,-500.0,0.00014794,2]
[333841457,1722545457169,-965.43,0.00014794,2]
[333841458,1722545457178,-151.0,0.00014794,2]
[333841459,1722545457189,-500.0,0.00014794,2]
[333841460,1722545457198,-500.0,0.00014794,2]
[333841461,1722545457207,-729.440791,0.00014794,2]
[333841462,1722545457217,-500.0,0.00014794,2]
[333841463,1722545457226,-151.0,0.00014794,2]
[333841464,1722545457235,-500.0,0.00014794,2]
[333841465,1722545457244,-500.0,0.00014794,2]
[333841466,1722545457254,-500.0,0.00014794,2]
[333841467,1722545457263,-506.14607776,0.00014794,2]
[333841468,1722545457273,-151.0,0.00014794,2]
[333841469,1722545457282,-500.0,0.00014794,2]
[333841470,1722545457291,-500.0,0.00014794,2]
[333841471,1722545457301,-500.0,0.00014794,2]
[333841472,1722545457311,-500.0,0.00014794,2]
[333841473,1722545457320,-500.0,0.00014794,2]
[333841474,1722545457330,-500.0,0.00014794,2]
[333841475,1722545457339,-213.314294,0.00014794,2]
[333841476,1722545457349,-272.89653633,0.00014794,2]
[333841477,1722545457358,-502.19630273,0.00014794,2]
[333841478,1722545457368,-500.0,0.00014794,2]
[333841479,1722545457377,-213.314294,0.00014794,2]
[333841480,1722545457387,-500.0,0.00014794,2]
[333841481,1722545457396,-500.0,0.00014794,2]
[333841482,1722545457408,-500.0,0.00014794,2]
[333841483,1722545457418,-791.6,0.00014794,2]
[333841484,1722545457429,-500.0,0.00014794,2]
[333841485,1722545457440,-500.0,0.00014794,2]
[333841486,1722545457449,-500.0,0.00014794,2]
[333841487,1722545457458,-500.0,0.00014794,2]
[333841488,1722545457468,-500.0,0.00014794,2]
[333841489,1722545457478,-500.0,0.00014794,2]
[333841490,1722545457487,-722.99,0.00014794,2]
[333841491,1722545457497,-630.24,0.00014794,2]
[333841492,1722545457507,-537.95,0.00014794,2]
[333841493,1722545457517,-500.0,0.00014794,2]
[333841494,1722545457526,-411.367019,0.00014794,2]
[333841495,1722545457536,-591.466904,0.00014794,2]
[333841496,1722545457545,-500.0,0.00014794,2]
[333841497,1722545457555,-411.367019,0.00014794,2]
[333841498,1722545457565,-591.466904,0.00014794,2]
[333841499,1722545457575,-881.14,0.00014794,2]
[333841500,1722545457585,-2047.44,0.00014794,2]
[333841501,1722545457594,-500.0,0.00014794,2]
[333841502,1722545457603,-500.0,0.00014794,2]
[333841503,1722545457613,-500.0,0.00014794,2]
[333841504,1722545457623,-500.0,0.00014794,2]
[333841505,1722545457632,-500.0,0.00014794,2]
[333841506,1722545457641,-500.0,0.00014794,2]
[333841507,1722545457651,-500.0,0.00014794,2]
[333841508,1722545457662,-500.0,0.00014794,2]
[333841509,1722545457672,-2400.03,0.00014794,2]
[333841510,1722545457681,-500.0,0.00014794,2]
[333841511,1722545457692,-500.0,0.00014794,2]
[333841512,1722545457704,-500.0,0.00014794,2]
[333841513,1722545457715,-500.0,0.00014794,2]
[333841514,1722545457725,-1649.88,0.00014794,2]
[333841515,1722545457735,-458.75395012,0.00014794,2]
[333841516,1722545457747,-500.0,0.00014794,2]
[333841517,1722545457757,-750.82,0.00014794,2]
[333841518,1722545457767,-619.88,0.00014794,2]
[333841519,1722545457777,-500.0,0.00014794,2]
[333841520,1722545457786,-511.09747774,0.00014794,2]
[333841521,1722545457796,-500.0,0.00014794,2]
[333841522,1722545457806,-151.0,0.00014794,2]
[333841523,1722545457815,-439.49389548,0.00014794,2]
[333841524,1722545457825,-500.0,0.00014794,2]
[333841525,1722545457834,-500.0,0.00014794,2]
[333841526,1722545457843,-500.0,0.00014794,2]
[333841527,1722545457853,-426.176973,0.00014794,2]
[333841528,1722545457862,-500.0,0.00014794,2]
[333841529,1722545457872,-500.0,0.00014794,2]
[333841530,1722545457881,-426.176973,0.00014794,2]
[333841531,1722545457891,-500.0,0.00014794,2]
[333841532,1722545457901,-500.0,0.00014794,2]
[333841533,1722545457912,-500.0,0.00014794,2]
[333841534,1722545457923,-500.0,0.00014794,2]
[333841535,1722545457932,-151.0,0.00014794,2]
[333841536,1722545457941,-1747.45,0.00014794,2]
[333841537,1722545457951,-401.88401895,0.00014794,2]
[333841538,1722545457961,-336.51722238,0.00014794,2]
[333841539,1722545457971,-1289.96,0.00014794,2]
[333841540,1722545457981,-500.0,0.00014794,2]
[333841541,1722545457991,-500.0,0.00014794,2]
[333841542,1722545458000,-500.0,0.00014794,2]
[333841543,1722545458010,-500.0,0.00014794,2]
[333841544,1722545458020,-500.0,0.00014794,2]
[333841545,1722545458029,-151.0,0.00014794,2]
[333841546,1722545458039,-500.0,0.00014794,2]
[333841547,1722545458049,-654.64,0.00014794,2]
[333841548,1722545458058,-500.0,0.00014794,2]
[333841549,1722545458068,-472.17357371,0.00014794,2]
[333841550,1722545458078,-500.0,0.00014794,2]
[333841551,1722545458088,-500.0,0.00014794,2]
[333841552,1722545458098,-500.0,0.00014794,2]
[333841553,1722545458108,-643.18,0.00014794,2]
[333841554,1722545458118,-500.0,0.00014794,2]
[333841555,1722545458128,-810.092214,0.00014794,2]
[333841556,1722545458137,-810.092214,0.00014794,2]
[333841557,1722545458146,-500.0,0.00014794,2]
[333841558,1722545458157,-500.0,0.00014794,2]
[333841559,1722545458167,-500.0,0.00014794,2]
[333841560,1722545458176,-500.0,0.00014794,2]
[333841561,1722545458185,-500.0,0.00014794,2]
[333841562,1722545458195,-500.0,0.00014794,2]
[333841563,1722545458205,-570.56,0.00014794,2]
[333841564,1722545458214,-500.0,0.00014794,2]
[333841565,1722545458224,-545.17,0.00014794,2]
[333841566,1722545458233,-500.0,0.00014794,2]
[333841567,1722545458243,-500.0,0.00014794,2]
[333841568,1722545458252,-850.69,0.00014794,2]
[333841569,1722545458262,-500.0,0.00014794,2]
[333841570,1722545458271,-500.0,0.00014794,2]
[333841571,1722545458280,-500.0,0.00014794,2]
[333841572,1722545458289,-564.02,0.00014794,2]
[333841573,1722545458298,-500.0,0.00014794,2]
[333841574,1722545458308,-604.0,0.00015,2]
[333841575,1722545458318,-7969.36638871,0.00015,2]
[333841576,1722545458327,-623.00105163,0.00015009,2]
[333841577,1722545458337,-206.9081725,0.00015014,2]
[333841578,1722545458347,-823.0,0.00015038,2]
[333841579,1722545458357,-500.0,0.00015068,2]
[333841580,1722545458366,-303.67,0.00015068,2]
[333841581,1722545458375,-382.88,0.00015068,2]
[333841582,1722545458385,-500.0,0.00015068,2]
[333841583,1722545458394,-500.0,0.00015068,2]
[333841584,1722545458403,-500.0,0.00015068,2]
[333841585,1722545458416,-500.0,0.00015068,2]
[333841586,1722545458428,-500.0,0.00015068,2]
[333841587,1722545458442,-500.0,0.00015068,2]
[333841588,1722545458452,-500.0,0.00015068,2]
[333841589,1722545458462,-447.8323181,0.00015068,2]
[333841590,1722545458473,-500.0,0.00015068,2]
[333841591,1722545458483,-500.0,0.00015068,2]
[333841592,1722545458492,-500.0,0.00015068,2]
[333841593,1722545458501,-500.0,0.00015068,2]
[333841594,1722545458512,-151.0,0.00015068,2]
[333841595,1722545458522,-500.0,0.00015068,2]
[333841596,1722545458531,-500.0,0.00015068,2]
[333841597,1722545458541,-500.0,0.00015068,2]
[333841598,1722545458550,-500.0,0.00015068,2]
[333841599,1722545458560,-500.0,0.00015068,2]
[333841600,1722545458569,-186.61345224,0.00015068,2]
[333841601,1722545458580,-541.92,0.00015068,2]
[333841602,1722545458589,-500.0,0.00015068,2]
[333841603,1722545458599,-500.0,0.00015068,2]
[333841604,1722545458610,-500.0,0.00015068,2]
[333841605,1722545458702,-500.0,0.00015068,2]
[333841606,1722545458712,-500.0,0.00015068,2]
[333841607,1722545458721,-306.1540175,0.00015068,2]
[333841608,1722545458730,-500.0,0.00015068,2]
[333841609,1722545458739,-500.0,0.00015068,2]
[333841610,1722545458748,-500.0,0.00015068,2]
[333841611,1722545458757,-500.0,0.00015068,2]
[333841612,1722545458767,-500.0,0.00015068,2]
[333841613,1722545458776,-535.57,0.00015068,2]
[333841614,1722545458785,-325.29883027,0.00015068,2]
[333841615,1722545458794,-500.0,0.00015068,2]
[333841616,1722545458804,-500.0,0.00015068,2]
[333841617,1722545458814,-500.0,0.00015068,2]
[333841618,1722545458824,-500.0,0.00015068,2]
[333841619,1722545458834,-500.0,0.00015068,2]
[333841620,1722545458843,-67.97677245,0.00015068,2]
[333841621,1722545458867,-432.02322755,0.00015068,2]
[333841622,1722545458878,-965.43,0.00015068,2]
[333841623,1722545458888,-500.0,0.00015068,2]
[333841624,1722545458898,-500.0,0.00015068,2]
[333841625,1722545458913,-500.0,0.00015068,2]
[333841626,1722545458923,-500.0,0.00015068,2]
[333841627,1722545458933,-500.0,0.00015068,2]
[333841628,1722545458943,-182.39708153,0.00015068,2]
[333841629,1722545458955,-317.60291847,0.00015068,2]
[333841630,1722545458965,-202.82737653,0.00015068,2]
[333841631,1722545471765,356.90689636,9.999e-05,2]
[333841632,1722545521851,154.77557542,9.999e-05,2]
[333841633,1722545530644,160.12324259,9.999e-05,2]
[333841635,1722545541894,209.81495165,9.999e-05,2]
[333841637,1722545548573,404.58378299,9.999e-05,2]
[333841647,1722545621854,154.79103211,9.999e-05,2]
[333841648,1722545727594,1003.75931325,9.999e-05,2]
[333841649,1722545740850,154.77557542,9.999e-05,2]
[333841650,1722545751884,154.77557542,9.999e-05,2]
[333841651,1722545826196,522.9586022,9.999e-05,2]
[333841652,1722545830356,244.78359005,9.999e-05,2]
[333841653,1722545852285,1000.0,0.00027,120]
[333841654,1722545856106,522.9586022,9.999e-05,2]
[333841655,1722545866346,1003.0,0.00025,60]
[333841656,1722545870869,154.77557542,9.999e-05,2]
[333841657,1722545946864,154.77557542,9.999e-05,2]
[333841658,1722545971174,522.9586022,9.999e-05,2]
[333841659,1722546022868,154.77557542,9.999e-05,2]
[333841660,1722546058226,522.9586022,9.999e-05,2]
[333841662,1722546124875,183.11162485,9.999e-05,2]
[333841663,1722546168122,522.9586022,9.999e-05,2]
[333841664,1722546183130,522.9586022,9.999e-05,2]
[333841665,1722546300124,522.9586022,9.999e-05,2]
[333841666,1722546414127,522.9586022,9.999e-05,2]
[333841668,1722546510140,522.9586022,9.999e-05,2]
[333841675,1722546596170,522.9586022,9.999e-05,2]
[333841729,1722546631869,-300.0,0.00010271,2]
[333841731,1722546631879,-2757.79672793,0.00010272,2]
[333841944,1722546640070,-12933.75000001,0.00010272,2]
[333841947,1722546640084,-972.0,0.00010272,2]
[333841949,1722546640103,-2149.31548844,0.00010272,2]
[333842210,1722546642862,-499.78027732,0.00010272,2]
[333842215,1722546642921,-5587.3575063,0.00010272,2]
[333842217,1722546642932,-250.0,0.00010925,2]
[333842218,1722546642941,-250.0,0.00010955,2]
[333842220,1722546642952,-1140.13,0.00010959,2]
[333842222,1722546642961,-950.11,0.00010959,2]
[333842223,1722546642972,-791.76,0.00010959,2]
[333842225,1722546642982,-659.8,0.00010959,2]
[333842227,1722546642991,-549.83,0.00010959,2]
[333842228,1722546643001,-458.19,0.00010959,2]
[333842230,1722546643011,-381.83,0.00010959,2]
[333842233,1722546643020,-166.666666,0.00010959,2]
[333842235,1722546643029,-318.19,0.00010959,2]
[333842238,1722546643039,-265.16,0.00010959,2]
[333842239,1722546643049,-220.96,0.00010959,2]
[333842241,1722546643059,-184.14,0.00010959,2]
[333842243,1722546643068,-153.45,0.00010959,2]
[333842244,1722546643077,-767.25,0.00010959,2]
[333842246,1722546643087,-250.0,0.00010985,2]
[333842248,1722546643096,-250.0,0.00011015,2]
[333842250,1722546643105,-250.0,0.00011045,2]
[333842253,1722546643115,-250.0,0.00011075,2]
[333842256,1722546643124,-250.0,0.00011104,2]
[333842258,1722546643133,-250.0,0.00011134,2]
[333842261,1722546643142,-250.0,0.00011164,2]
[333842263,1722546643152,-250.0,0.00011194,2]
[333842264,1722546643161,-166.666666,0.00011215,2]
[333842266,1722546643171,-250.0,0.00011224,2]
[333842268,1722546643180,-250.0,0.00011254,2]
[333842269,1722546643189,-250.0,0.00011284,2]
[333842271,1722546643199,-420.0,0.00011298,2]
[333842272,1722546643208,-250.0,0.00011314,2]
[333842274,1722546643217,-154.01546306,0.00011344,2]
[333842276,1722546643229,-95.98453694,0.00011344,2]
[333842278,1722546643240,-250.0,0.00011374,2]
[333842279,1722546643249,-250.0,0.00011404,2]
[333842281,1722546643259,-250.0,0.00011434,2]
[333842283,1722546643268,-250.0,0.00011464,2]
[333842284,1722546643278,-166.666666,0.00011472,2]
[333842286,1722546643287,-250.0,0.00011494,2]
[333842287,1722546643297,-166.666666,0.00011728,2]
[333842289,1722546643306,-112.57213106,0.00011985,2]
[333842451,1722546645978,-54.09453494,0.00011985,2]
[333842452,1722546645993,-459.55767833,0.00012119,2]
[333842453,1722546646003,-459.55767833,0.00012119,2]
[333842454,1722546646012,-161.7352196,0.0001212,2]
[333842455,1722546646021,-1787.53137535,0.0001212,2]
[333842456,1722546646033,-1737.76934967,0.0001212,2]
[333842457,1722546646116,-43314.98484739,0.0001212,2]
[333842458,1722546646126,-159.18836895,0.0001212,2]
[333842459,1722546646135,-522.9586022,0.0001212,2]
[333842460,1722546646145,-166.666666,0.00012241,2]
[333842461,1722546646155,-587.0,0.00012427,2]
[333842462,1722546646165,-5530.89339711,0.000129,2]
[333842463,1722546646175,-168.15969,0.00012986,2]
[333842464,1722546646185,-151.0,0.000133,2]
[333842465,1722546646194,-4288.41,0.00013467,2]
[333842466,1722546646204,-4288.41,0.00013477,2]
[333842467,1722546646214,-4288.41,0.00013477,2]
[333842468,1722546646224,-67003.2424704,0.0001349,2]
[333842469,1722546646237,-150.112233,0.000135,2]
[333842470,1722546646247,-67003.2424704,0.00013578,2]
[333842471,1722546646256,-88888.0,0.00013588,2]
[333842472,1722546646266,-454.89251179,0.00013593,2]
[333842473,1722546646276,-454.89251179,0.00013596,2]
[333842474,1722546646285,-454.89251179,0.00013598,2]
[333842475,1722546646294,-2146.7459321,0.00013598,2]
[333842476,1722546646304,-200.0,0.00013598,2]
[333842477,1722546646314,-150.112233,0.000136,2]
[333842478,1722546646323,-521.0,0.0001367,2]
[333842479,1722546646333,-67003.2424704,0.00013674,2]
[333842480,1722546646343,-4288.41,0.00013684,2]
[333842481,1722546646352,-4288.41,0.00013687,2]
[333842482,1722546646362,-10188.41300271,0.00013688,5]
[333842483,1722546646371,-134006.484941,0.00013688,2]
[333842484,1722546646381,-4288.41,0.00013697,2]
[333842485,1722546646391,-4288.41,0.00013697,2]
[333842486,1722546646401,-4288.41,0.00013697,2]
[333842487,1722546646410,-4288.41,0.00013697,2]
[333842488,1722546646419,-404.21286744,0.00013698,2]
[333842489,1722546646429,-500.0,0.00013698,2]